[Event "RUS-ch Women Blitz 2019"]
[Site "Sochi"]
[Date "2019.10.17"]
[Round "14.9"]
[White "Vifleemskaia, Svetlana"]
[Black "Kovanova, Baira"]
[Result "0-1"]
[ECO "E46"]
[WhiteElo "1978"]
[BlackElo "2344"]
[Annotator "NA"]
[PlyCount "49"]
[EventDate "2019.10.17"]
[EventType "swiss"]
[EventCountry "RUS"]
[SourceTitle "playchess.com"]
[Source "ChessBase"]
[SourceQuality "1"]
[TimeControl "180+2"]

1. d4 {[%emt 0:00:00]} Nf6 {[%emt 0:00:00]} 2. c4 {[%emt 0:00:00]} e6 {[%emt 0:00:00]} 3. Nc3 {[%emt 0:00:00]} Bb4 {[%emt 0:00:00]} 4. e3 {[%emt 0:00:01]} O-O {[%emt 0:00:04]} 5. Nge2 {[%emt 0:00:00]} d5 {[%emt 0:00:01]} 6. a3 {[%emt 0:00:05]} Be7 {[%emt 0:00:04]} 7. cxd5 {[%emt 0:00:06]} exd5 {[%emt 0:00:01]} 8. g3 {[%emt 0:00:01]} Re8 {[%emt 0:00:06]} 9. Bg2 {[%emt 0:00:01]} c6 {[%emt 0:00:01]} 10. O-O {[%emt 0:00:01]} a5 {[%emt 0:00:03]} 11. f3 {[%emt 0:00:11]} c5 {[%emt 0:00:05]} 12. Kh1 {[%emt 0:00:45]} Nc6 {[%emt 0:00:02]} 13. Nf4 {[%emt 0:00:30]} cxd4 {[%emt 0:00:31]} 14. exd4 {[%emt 0:00:02]} Bf8 {[%emt 0:00:03]} 15. Nfe2 {[%emt 0:00:12]} h6 {[%emt 0:00:03]} 16. Qd3 {[%emt 0:00:09]} b6 {[%emt 0:00:25]} 17. Bf4 {[%emt 0:00:26]} Ba6 {[%emt 0:00:06]} 18. Qd2 {[%emt 0:00:11]} Qd7 {[%emt 0:00:05]} 19. Rfe1 {[%emt 0:00:03]} Bc4 {[%emt 0:00:04]} 20. Ng1 {[%emt 0:00:25]} Qf5 {[%emt 0:00:32]} 21. Bh3 {[%emt 0:00:18]} Qg6 {[%emt 0:00:06]} 22. Nge2 {[%emt 0:00:09]} b5 {[%emt 0:00:07]} 23. Rac1 {[%emt 0:00:06]} a4 {[%emt 0:00:21]} 24. Be3 {[%emt 0:00:03]} Na5 {[%emt 0:00:03]} 25. Qc2 0-1

[Event "RUS-ch Women Blitz 2019"]
[Site "Sochi"]
[Date "2019.10.17"]
[Round "14.10"]
[White "Gritsayeva, Oksana"]
[Black "Semenova, Elena"]
[Result "1-0"]
[ECO "C85"]
[WhiteElo "2370"]
[BlackElo "2282"]
[Annotator "NA"]
[PlyCount "102"]
[EventDate "2019.10.17"]
[EventType "swiss"]
[EventCountry "RUS"]
[SourceTitle "playchess.com"]
[Source "ChessBase"]
[SourceQuality "1"]
[TimeControl "180+2"]

1. e4 {[%emt 0:00:00]} e5 {[%emt 0:00:00]} 2. Nf3 Nc6 3. Bb5 {[%emt 0:00:04]} a6 {[%emt 0:00:00]} 4. Ba4 {[%emt 0:00:01]} Nf6 {[%emt 0:00:01]} 5. O-O {[%emt 0:00:05]} Be7 {[%emt 0:00:02]} 6. Bxc6 {[%emt 0:00:03]} dxc6 {[%emt 0:00:01]} 7. d3 {[%emt 0:00:01]} Nd7 {[%emt 0:00:13]} 8. Nbd2 {[%emt 0:00:02]} O-O {[%emt 0:00:04]} 9. Nc4 {[%emt 0:00:02]} f6 {[%emt 0:00:04]} 10. Nh4 {[%emt 0:00:08]} c5 {[%emt 0:00:20]} 11. f4 {[%emt 0:00:17]} exf4 {[%emt 0:00:16]} 12. Bxf4 {[%emt 0:00:02]} b5 {[%emt 0:00:15]} 13. Na5 {[%emt 0:00:14]} Bd6 {[%emt 0:00:10]} 14. Nf5 {[%emt 0:00:14]} Ne5 {[%emt 0:00:08]} 15. Bg3 {[%emt 0:00:32]} Bxf5 {[%emt 0:00:19]} 16. Rxf5 {[%emt 0:00:02]} Qd7 {[%emt 0:00:02]} 17. Nb3 {[%emt 0:00:09]} Rad8 {[%emt 0:00:02]} 18. Qe2 {[%emt 0:00:12]} Qe7 {[%emt 0:00:06]} 19. Nd2 {[%emt 0:00:08]} Nc6 {[%emt 0:00:03]} 20. Bxd6 {[%emt 0:00:10]} cxd6 {[%emt 0:00:08]} 21. Qd1 {[%emt 0:00:15]} Nd4 {[%emt 0:00:03]} 22. Rf2 {[%emt 0:00:03]} Rfe8 {[%emt 0:00:13]} 23. Nf3 {[%emt 0:00:03]} Nxf3+ {[%emt 0:00:06]} 24. Qxf3 {[%emt 0:00:01]} Qe5 {[%emt 0:00:02]} 25. Rb1 {[%emt 0:00:16]} d5 {[%emt 0:00:02]} 26. exd5 {[%emt 0:00:04]} Qxd5 {[%emt 0:00:02]} 27. Qxd5+ {[%emt 0:00:04]} Rxd5 {[%emt 0:00:01]} 28. Rd1 {[%emt 0:00:13]} Kf7 {[%emt 0:00:07]} 29. Kf1 {[%emt 0:00:02]} Rde5 {[%emt 0:00:04]} 30. g3 {[%emt 0:00:05]} a5 {[%emt 0:00:02]} 31. c3 {[%emt 0:00:06]} a4 {[%emt 0:00:11]} 32. d4 {[%emt 0:00:06]} Rd5 {[%emt 0:00:02]} 33. Rfd2 {[%emt 0:00:01]} Red8 {[%emt 0:00:09]} 34. Ke2 {[%emt 0:00:01]} cxd4 {[%emt 0:00:13]} 35. Rxd4 {[%emt 0:00:04]} Rxd4 {[%emt 0:00:06]} 36. cxd4 {[%emt 0:00:04]} Ke6 {[%emt 0:00:09]} 37. Kd3 {[%emt 0:00:00]} Kd6 {[%emt 0:00:03]} 38. Rc1 {[%emt 0:00:03]} Rb8 {[%emt 0:00:09]} 39. Rc5 {[%emt 0:00:02]} g6 {[%emt 0:00:05]} 40. Ke4 {[%emt 0:00:02]} Re8+ {[%emt 0:00:02]} 41. Kd3 {[%emt 0:00:01]} Rb8 {[%emt 0:00:00]} 42. Kc3 {[%emt 0:00:02]} b4+ {[%emt 0:00:05]} 43. Kc4 {[%emt 0:00:01]} b3 {[%emt 0:00:01]} 44. a3 {[%emt 0:00:03]} Re8 {[%emt 0:00:02]} 45. Ra5 {[%emt 0:00:05]} Re2 {[%emt 0:00:02]} 46. Rxa4 {[%emt 0:00:03]} Rxb2 {[%emt 0:00:02]} 47. Rb4 {[%emt 0:00:00]} Rb1 {[%emt 0:00:03]} 48. Rxb3 {[%emt 0:00:03]} Rc1+ {[%emt 0:00:04]} 49. Kd3 {[%emt 0:00:02]} Rd1+ {[%emt 0:00:01]} 50. Ke3 {[%emt 0:00:02]} Re1+ {[%emt 0:00:02]} 51. Kd2 {[%emt 0:00:04]} Rh1 {[%emt 0:00:01]} 1-0

[Event "RUS-ch Women Blitz 2019"]
[Site "Sochi"]
[Date "2019.10.17"]
[Round "14.11"]
[White "Goltseva, Ekaterina"]
[Black "Afonasieva, Anna"]
[Result "1-0"]
[ECO "D10"]
[WhiteElo "2317"]
[BlackElo "2312"]
[Annotator "NA"]
[PlyCount "234"]
[EventDate "2019.10.17"]
[EventType "swiss"]
[EventCountry "RUS"]
[SourceTitle "playchess.com"]
[Source "ChessBase"]
[SourceQuality "1"]
[TimeControl "180+2"]

1. d4 {[%emt 0:00:00]} d5 {[%emt 0:00:00]} 2. c4 {[%emt 0:00:01]} c6 {[%emt 0:00:00]} 3. cxd5 {[%emt 0:00:01]} cxd5 {[%emt 0:00:01]} 4. Bf4 {[%emt 0:00:02]} Nc6 {[%emt 0:00:02]} 5. e3 {[%emt 0:00:01]} Nf6 {[%emt 0:00:02]} 6. Nc3 {[%emt 0:00:01]} Bf5 {[%emt 0:00:02]} 7. Qb3 {[%emt 0:00:01]} Na5 {[%emt 0:00:03]} 8. Qa4+ {[%emt 0:00:01]} Bd7 {[%emt 0:00:03]} 9. Qc2 {[%emt 0:00:01]} e6 {[%emt 0:00:07]} 10. Nf3 {[%emt 0:00:09]} Rc8 {[%emt 0:00:02]} 11. Bd3 {[%emt 0:00:02]} Be7 {[%emt 0:00:02]} 12. h3 {[%emt 0:00:01]} O-O {[%emt 0:00:03]} 13. O-O {[%emt 0:00:02]} h6 {[%emt 0:00:02]} 14. Ne5 {[%emt 0:00:06]} Nc6 {[%emt 0:00:09]} 15. Qe2 {[%emt 0:00:09]} Be8 {[%emt 0:00:27]} 16. Rac1 {[%emt 0:00:16]} Nd7 {[%emt 0:00:07]} 17. Nxc6 {[%emt 0:00:23]} Rxc6 {[%emt 0:00:11]} 18. e4 {[%emt 0:00:04]} Bg5 {[%emt 0:00:36]} 19. Bxg5 {[%emt 0:00:07]} Qxg5 {[%emt 0:00:01]} 20. f4 {[%emt 0:00:07]} Qe7 {[%emt 0:00:07]} 21. exd5 {[%emt 0:00:04]} Rd6 {[%emt 0:00:06]} 22. Rce1 {[%emt 0:00:29]} Nf6 {[%emt 0:00:34]} 23. dxe6 {[%emt 0:00:05]} Rxe6 {[%emt 0:00:00]} 24. Qf2 {[%emt 0:00:04]} Rxe1 {[%emt 0:00:05]} 25. Rxe1 {[%emt 0:00:01]} Qb4 {[%emt 0:00:06]} 26. a3 {[%emt 0:00:09]} Qd6 {[%emt 0:00:01]} 27. Ne4 {[%emt 0:00:07]} Nxe4 {[%emt 0:00:02]} 28. Bxe4 {[%emt 0:00:11]} Bc6 {[%emt 0:00:07]} 29. Bxc6 {[%emt 0:00:17]} bxc6 {[%emt 0:00:01]} 30. f5 {[%emt 0:00:14]} Rd8 {[%emt 0:00:04]} 31. Re4 {[%emt 0:00:01]} Qf6 {[%emt 0:00:07]} 32. Re5 {[%emt 0:00:09]} Rb8 {[%emt 0:00:08]} 33. b4 {[%emt 0:00:03]} Rd8 {[%emt 0:00:01]} 34. Qe3 {[%emt 0:00:14]} Rd6 {[%emt 0:00:08]} 35. Qe4 {[%emt 0:00:08]} Kh7 {[%emt 0:00:09]} 36. Qe3 {[%emt 0:00:07]} Qh4 {[%emt 0:00:08]} 37. Re4 {[%emt 0:00:04]} Qf6 {[%emt 0:00:03]} 38. Qf4 {[%emt 0:00:02]} Rd5 {[%emt 0:00:03]} 39. Re5 {[%emt 0:00:04]} Rd6 {[%emt 0:00:01]} 40. Kh1 {[%emt 0:00:05]} Qd8 {[%emt 0:00:04]} 41. Re4 {[%emt 0:00:03]} Qf6 {[%emt 0:00:04]} 42. Re5 {[%emt 0:00:04]} Qd8 {[%emt 0:00:01]} 43. Re4 {[%emt 0:00:00]} Qf6 {[%emt 0:00:00]} 44. Qe5 {[%emt 0:00:03]} Qd8 {[%emt 0:00:05]} 45. Rg4 {[%emt 0:00:03]} f6 {[%emt 0:00:03]} 46. Qe4 {[%emt 0:00:02]} Rd5 {[%emt 0:00:02]} 47. Qe3 {[%emt 0:00:02]} Qd7 {[%emt 0:00:02]} 48. Qg3 {[%emt 0:00:02]} Rxf5 {[%emt 0:00:02]} 49. Re4 {[%emt 0:00:02]} Rd5 {[%emt 0:00:02]} 50. Qf4 {[%emt 0:00:02]} Rf5 {[%emt 0:00:04]} 51. Qe3 {[%emt 0:00:01]} Qd6 {[%emt 0:00:02]} 52. Qe1 {[%emt 0:00:02]} Rd5 {[%emt 0:00:02]} 53. Qf2 {[%emt 0:00:01]} Qd7 {[%emt 0:00:02]} 54. Qf4 {[%emt 0:00:02]} Rf5 {[%emt 0:00:02]} 55. Qg3 {[%emt 0:00:01]} Rd5 {[%emt 0:00:02]} 56. Qf4 {[%emt 0:00:03]} Rf5 {[%emt 0:00:01]} 57. Qg3 {[%emt 0:00:01]} Rd5 {[%emt 0:00:01]} 58. Qf2 {[%emt 0:00:03]} Rf5 {[%emt 0:00:02]} 59. Qe1 {[%emt 0:00:03]} Rd5 {[%emt 0:00:07]} 60. Qe3 {[%emt 0:00:02]} Rf5 {[%emt 0:00:01]} 61. Rf4 {[%emt 0:00:01]} Rxf4 {[%emt 0:00:02]} 62. Qxf4 {[%emt 0:00:01]} Qd5 {[%emt 0:00:01]} 63. Qe3 {[%emt 0:00:04]} Qf5 {[%emt 0:00:03]} 64. Kh2 {[%emt 0:00:02]} Qd5 {[%emt 0:00:02]} 65. Qf4 {[%emt 0:00:02]} a6 {[%emt 0:00:03]} 66. Qe3 {[%emt 0:00:03]} Qf5 {[%emt 0:00:02]} 67. Qg3 {[%emt 0:00:02]} Qb5 {[%emt 0:00:03]} 68. Qd6 {[%emt 0:00:02]} Kg8 {[%emt 0:00:05]} 69. Qd8+ {[%emt 0:00:02]} Kh7 {[%emt 0:00:01]} 70. Qd7 {[%emt 0:00:01]} Kg6 71. Qe8+ {[%emt 0:00:01]} Kh7 {[%emt 0:00:02]} 72. Qd7 {[%emt 0:00:01]} Kg8 {[%emt 0:00:01]} 73. Qe6+ {[%emt 0:00:01]} Kh7 {[%emt 0:00:01]} 74. Qd6 {[%emt 0:00:03]} Kg8 {[%emt 0:00:01]} 75. Qe6+ {[%emt 0:00:02]} Kh7 {[%emt 0:00:01]} 76. Qb3 {[%emt 0:00:01]} Qf5 {[%emt 0:00:02]} 77. Qe3 {[%emt 0:00:03]} Qb5 {[%emt 0:00:02]} 78. Qe4+ {[%emt 0:00:03]} Kg8 {[%emt 0:00:01]} 79. Qe6+ {[%emt 0:00:02]} Kh7 {[%emt 0:00:00]} 80. Qe4+ {[%emt 0:00:01]} Kg8 {[%emt 0:00:02]} 81. Qe6+ {[%emt 0:00:03]} Kh7 {[%emt 0:00:00]} 82. Qd6 {[%emt 0:00:00]} Qc4 {[%emt 0:00:03]} 83. Qc5 {[%emt 0:00:03]} Qf1 {[%emt 0:00:05]} 84. Qxc6 {[%emt 0:00:04]} Qf4+ {[%emt 0:00:01]} 85. Kh1 {[%emt 0:00:03]} Qf1+ {[%emt 0:00:01]} 86. Kh2 {[%emt 0:00:01]} Qf4+ {[%emt 0:00:01]} 87. g3 {[%emt 0:00:02]} Qf2+ {[%emt 0:00:02]} 88. Qg2 {[%emt 0:00:01]} Qxd4 {[%emt 0:00:01]} 89. Qc2+ {[%emt 0:00:03]} Kg8 {[%emt 0:00:02]} 90. Qe2 {[%emt 0:00:03]} Qd6 {[%emt 0:00:03]} 91. Qc4+ {[%emt 0:00:02]} Kh7 {[%emt 0:00:01]} 92. Qc2+ {[%emt 0:00:01]} Kg8 {[%emt 0:00:01]} 93. Qb3+ {[%emt 0:00:02]} Kh7 {[%emt 0:00:01]} 94. Qb2 {[%emt 0:00:01]} Qd3 {[%emt 0:00:05]} 95. a4 {[%emt 0:00:02]} h5 {[%emt 0:00:03]} 96. h4 {[%emt 0:00:03]} f5 {[%emt 0:00:05]} 97. b5 {[%emt 0:00:02]} axb5 {[%emt 0:00:02]} 98. axb5 {[%emt 0:00:00]} Qe4 {[%emt 0:00:02]} 99. Qf2 {[%emt 0:00:03]} f4 {[%emt 0:00:07]} 100. gxf4 {[%emt 0:00:02]} Qd5 {[%emt 0:00:03]} 101. b6 {[%emt 0:00:02]} Qb7 {[%emt 0:00:02]} 102. Qd4 {[%emt 0:00:02]} Qf3 {[%emt 0:00:02]} 103. Kg1 {[%emt 0:00:05]} Qg4+ {[%emt 0:00:01]} 104. Kf1 {[%emt 0:00:01]} Qf3+ {[%emt 0:00:02]} 105. Ke1 {[%emt 0:00:02]} Qh1+ {[%emt 0:00:01]} 106. Kd2 {[%emt 0:00:01]} Qg2+ {[%emt 0:00:03]} 107. Kd3 {[%emt 0:00:03]} Qf1+ {[%emt 0:00:01]} 108. Kc3 {[%emt 0:00:02]} Qa1+ {[%emt 0:00:02]} 109. Kc4 {[%emt 0:00:01]} Qa4+ {[%emt 0:00:02]} 110. Kc5 {[%emt 0:00:02]} Qa5+ {[%emt 0:00:02]} 111. Kc6 {[%emt 0:00:01]} Qa8+ {[%emt 0:00:04]} 112. b7 {[%emt 0:00:02]} Qe8+ {[%emt 0:00:01]} 113. Kb6 {[%emt 0:00:03]} Qe6+ {[%emt 0:00:02]} 114. Kc7 {[%emt 0:00:03]} Qe7+ {[%emt 0:00:02]} 115. Kc8 {[%emt 0:00:03]} Qe8+ {[%emt 0:00:03]} 116. Qd8 {[%emt 0:00:02]} Qe6+ {[%emt 0:00:06]} 117. Qd7 {[%emt 0:00:02]} Qc4+ {[%emt 0:00:02]} 1-0

[Event "RUS-ch Women Blitz 2019"]
[Site "Sochi"]
[Date "2019.10.17"]
[Round "14.12"]
[White "Zhurova, Anna"]
[Black "Bivol, Alina"]
[Result "1/2-1/2"]
[ECO "C18"]
[WhiteElo "1987"]
[BlackElo "2371"]
[Annotator "NA"]
[PlyCount "111"]
[EventDate "2019.10.17"]
[EventType "swiss"]
[EventCountry "RUS"]
[SourceTitle "playchess.com"]
[Source "ChessBase"]
[SourceQuality "1"]
[TimeControl "180+2"]

1. e4 {[%emt 0:00:00]} e6 {[%emt 0:00:00]} 2. d4 d5 3. Nc3 {[%emt 0:00:00]} Bb4 4. e5 c5 {[%emt 0:00:00]} 5. a3 {[%emt 0:00:00]} Bxc3+ {[%emt 0:00:01]} 6. bxc3 {[%emt 0:00:01]} Qa5 {[%emt 0:00:01]} 7. Bd2 {[%emt 0:00:01]} Qa4 {[%emt 0:00:01]} 8. Nf3 {[%emt 0:00:08]} Nc6 {[%emt 0:00:01]} 9. Be3 {[%emt 0:00:14]} c4 {[%emt 0:00:12]} 10. g3 {[%emt 0:00:02]} Bd7 {[%emt 0:00:02]} 11. Bh3 {[%emt 0:00:03]} O-O-O {[%emt 0:00:03]} 12. Ng5 {[%emt 0:00:11]} Rf8 {[%emt 0:00:05]} 13. f4 {[%emt 0:00:08]} h6 {[%emt 0:00:03]} 14. Nf3 {[%emt 0:00:07]} Nge7 {[%emt 0:00:02]} 15. Nh4 {[%emt 0:00:05]} g6 {[%emt 0:00:14]} 16. Nf3 {[%emt 0:00:24]} Rfg8 {[%emt 0:00:11]} 17. Qd2 {[%emt 0:00:13]} Nf5 {[%emt 0:00:11]} 18. Bxf5 {[%emt 0:00:04]} gxf5 {[%emt 0:00:10]} 19. Qc1 {[%emt 0:00:10]} Ne7 {[%emt 0:00:10]} 20. Qb2 {[%emt 0:00:08]} h5 {[%emt 0:00:02]} 21. Rb1 {[%emt 0:00:18]} Qc6 {[%emt 0:00:20]} 22. Qb4 {[%emt 0:00:09]} Ng6 {[%emt 0:00:08]} 23. h4 {[%emt 0:00:18]} a6 {[%emt 0:00:03]} 24. Ng5 {[%emt 0:00:06]} Rg7 {[%emt 0:00:01]} 25. a4 {[%emt 0:00:06]} Re8 {[%emt 0:00:18]} 26. Bc1 {[%emt 0:00:21]} Kb8 {[%emt 0:00:07]} 27. Ba3 {[%emt 0:00:02]} Ka8 {[%emt 0:00:01]} 28. Kd2 {[%emt 0:00:16]} Ne7 {[%emt 0:00:15]} 29. a5 {[%emt 0:00:04]} Nc8 {[%emt 0:00:03]} 30. Qc5 {[%emt 0:00:02]} Qxc5 {[%emt 0:00:04]} 31. Bxc5 {[%emt 0:00:01]} Bb5 {[%emt 0:00:11]} 32. Rhg1 {[%emt 0:00:05]} Kb8 {[%emt 0:00:02]} 33. Ke3 {[%emt 0:00:07]} Kc7 {[%emt 0:00:01]} 34. Kf3 {[%emt 0:00:01]} Kc6 {[%emt 0:00:18]} 35. Rb2 {[%emt 0:00:02]} Ne7 {[%emt 0:00:20]} 36. Bxe7 {[%emt 0:00:08]} Rxe7 {[%emt 0:00:02]} 37. Rgb1 {[%emt 0:00:01]} Rg8 {[%emt 0:00:01]} 38. Ra2 {[%emt 0:00:03]} Rb8 {[%emt 0:00:02]} 39. Rab2 {[%emt 0:00:01]} b6 {[%emt 0:00:00]} 40. axb6 {[%emt 0:00:01]} Rxb6 {[%emt 0:00:01]} 41. Ra2 {[%emt 0:00:02]} Ra7 {[%emt 0:00:02]} 42. Ra5 {[%emt 0:00:02]} Kc7 {[%emt 0:00:16]} 43. Rba1 {[%emt 0:00:01]} Be8 {[%emt 0:00:02]} 44. R1a2 {[%emt 0:00:03]} Kb7 {[%emt 0:00:02]} 45. Nh7 {[%emt 0:00:02]} Rb5 {[%emt 0:00:06]} 46. R5a3 {[%emt 0:00:04]} Rb1 {[%emt 0:00:06]} 47. Nf6 {[%emt 0:00:00]} Bb5 {[%emt 0:00:01]} 48. Nxh5 {[%emt 0:00:02]} Kb6 {[%emt 0:00:02]} 49. Nf6 {[%emt 0:00:02]} Ra8 {[%emt 0:00:03]} 50. h5 {[%emt 0:00:02]} Rh1 {[%emt 0:00:03]} 51. Kg2 {[%emt 0:00:00]} Rd1 {[%emt 0:00:02]} 52. h6 {[%emt 0:00:03]} Rh8 {[%emt 0:00:03]} 53. h7 {[%emt 0:00:00]} Rd2+ {[%emt 0:00:01]} 54. Kh3 {[%emt 0:00:03]} Rd1 {[%emt 0:00:01]} 55. Kg2 {[%emt 0:00:01]} Rd2+ {[%emt 0:00:01]} 56. Kh3 {[%emt 0:00:00]} 1/2-1/2

[Event "RUS-ch Women Blitz 2019"]
[Site "Sochi"]
[Date "2019.10.17"]
[Round "15.3"]
[White "Voit, Daria"]
[Black "Pogonina, Natalija"]
[Result "0-1"]
[ECO "D30"]
[WhiteElo "2336"]
[BlackElo "2479"]
[Annotator "ChessBase"]
[PlyCount "82"]
[EventDate "2019.10.17"]
[EventType "swiss"]
[EventCountry "RUS"]
[SourceTitle "playchess.com"]
[Source "ChessBase"]
[SourceQuality "1"]
[TimeControl "180+2"]

1. d4 {[%emt 0:00:00]} d5 {[%emt 0:00:00]} 2. c4 {[%emt 0:00:00]} e6 {[%emt 0:00:01]} 3. Nf3 {[%emt 0:00:01]} Nf6 {[%emt 0:00:02]} 4. g3 {[%emt 0:00:01]} Bb4+ {[%emt 0:00:01]} 5. Bd2 {[%emt 0:00:01]} Be7 {[%emt 0:00:01]} 6. Bg2 {[%emt 0:00:01]} O-O {[%emt 0:00:03]} 7. O-O {[%emt 0:00:01]} Nbd7 {[%emt 0:00:01]} 8. Qc2 {[%emt 0:00:01]} c6 {[%emt 0:00:03]} 9. Bf4 {[%emt 0:00:04]} b6 {[%emt 0:00:01]} 10. Rd1 {[%emt 0:00:03]} Ba6 {[%emt 0:00:01]} 11. Ne5 {[%emt 0:00:02]} Rc8 {[%emt 0:00:02]} 12. Nc3 {[%emt 0:00:01]} Bxc4 {[%emt 0:00:02]} 13. Nxc4 {[%emt 0:00:01]} dxc4 {[%emt 0:00:01]} 14. e4 {[%emt 0:00:02]} b5 {[%emt 0:00:01]} 15. d5 {[%emt 0:00:05]} cxd5 {[%emt 0:00:02]} 16. exd5 {[%emt 0:00:09]} e5 {[%emt 0:00:01]} 17. Be3 {[%emt 0:00:18]} Bc5 {[%emt 0:00:10]} 18. Bxc5 {[%emt 0:00:33]} Rxc5 {[%emt 0:00:03]} 19. b4 {[%emt 0:00:38]} cxb3 {[%emt 0:00:05]} 20. Qxb3 {[%emt 0:00:01]} Qb6 {[%emt 0:00:06]} 21. d6 {[%emt 0:00:15]} Qa5 {[%emt 0:00:38]} 22. Ne4 {[%emt 0:00:12]} Nxe4 {[%emt 0:00:03]} 23. Bxe4 {[%emt 0:00:01]} Nf6 {[%emt 0:00:24]} 24. Qe3 {[%emt 0:00:17]} Rc3 {[%emt 0:00:31]} 25. Qe1 {[%emt 0:00:02]} b4 {[%emt 0:00:01]} 26. Bf5 {[%emt 0:00:09]} g6 {[%emt 0:00:02]} 27. Bh3 {[%emt 0:00:01]} Qc5 {[%emt 0:00:05]} 28. Rd2 {[%emt 0:00:08]} Rd8 {[%emt 0:00:10]} 29. Rad1 {[%emt 0:00:01]} e4 {[%emt 0:00:06]} 30. Rd4 {[%emt 0:00:22]} a5 {[%emt 0:00:03]} 31. Qd2 {[%emt 0:00:08]} a4 {[%emt 0:00:09]} 32. Qf4 {[%emt 0:00:02]} Kg7 {[%emt 0:00:05]} 33. d7 {[%emt 0:00:04]} b3 {[%emt 0:00:06]} 34. axb3 {[%emt 0:00:03]} axb3 {[%emt 0:00:02]} 35. Rd6 {[%emt 0:00:01]} Rf3 {[%emt 0:00:11]} 36. Qd2 {[%emt 0:00:05]} e3 {[%emt 0:00:06]} 37. fxe3 {[%emt 0:00:03]} Ne4 {[%emt 0:00:06]} 38. Qb2+ {[%emt 0:00:12]} Kg8 {[%emt 0:00:05]} 39. R6d3 {[%emt 0:00:03]} Rxe3 {[%emt 0:00:02]} 40. Rxe3 {[%emt 0:00:08]} Qxe3+ {[%emt 0:00:02]} 41. Kg2 {[%emt 0:00:02]} Ng5 {[%emt 0:00:02]} 0-1

[Event "RUS-ch Women Blitz 2019"]
[Site "Sochi"]
[Date "2019.10.17"]
[Round "15.4"]
[White "Belenkaya, Dina"]
[Black "Garifullina, Leya"]
[Result "1/2-1/2"]
[ECO "B23"]
[WhiteElo "2300"]
[BlackElo "2330"]
[Annotator "NA"]
[PlyCount "95"]
[EventDate "2019.10.17"]
[EventType "swiss"]
[EventCountry "RUS"]
[SourceTitle "playchess.com"]
[Source "ChessBase"]
[SourceQuality "1"]
[TimeControl "180+2"]

1. e4 {[%emt 0:00:00]} c5 {[%emt 0:00:00]} 2. Nc3 {[%emt 0:00:00]} e6 {[%emt 0:00:00]} 3. g3 {[%emt 0:00:00]} d6 {[%emt 0:00:01]} 4. Bg2 {[%emt 0:00:01]} Nc6 {[%emt 0:00:01]} 5. d3 {[%emt 0:00:05]} g6 {[%emt 0:00:01]} 6. Nf3 {[%emt 0:00:01]} Bg7 {[%emt 0:00:01]} 7. Bg5 {[%emt 0:00:04]} Nge7 {[%emt 0:00:02]} 8. Qd2 {[%emt 0:00:00]} h6 {[%emt 0:00:01]} 9. Be3 {[%emt 0:00:01]} Rb8 {[%emt 0:00:16]} 10. O-O {[%emt 0:00:02]} Nd4 {[%emt 0:00:05]} 11. Ne2 {[%emt 0:00:03]} Nxf3+ {[%emt 0:00:05]} 12. Bxf3 {[%emt 0:00:01]} Bxb2 {[%emt 0:00:02]} 13. Rab1 {[%emt 0:00:01]} Bg7 {[%emt 0:00:01]} 14. d4 {[%emt 0:00:10]} c4 {[%emt 0:00:02]} 15. d5 {[%emt 0:00:16]} exd5 {[%emt 0:00:17]} 16. exd5 {[%emt 0:00:03]} Ra8 {[%emt 0:00:02]} 17. Nd4 {[%emt 0:00:09]} Bh3 {[%emt 0:00:12]} 18. Rfe1 {[%emt 0:00:01]} Qd7 {[%emt 0:00:08]} 19. Rb4 {[%emt 0:00:10]} Rc8 {[%emt 0:00:02]} 20. c3 {[%emt 0:00:16]} g5 {[%emt 0:00:07]} 21. Bh5 {[%emt 0:00:05]} O-O {[%emt 0:00:03]} 22. Bf3 {[%emt 0:00:23]} a6 {[%emt 0:00:11]} 23. a4 {[%emt 0:00:02]} Bg4 {[%emt 0:00:10]} 24. Bg2 {[%emt 0:00:07]} Bh3 {[%emt 0:00:02]} 25. Bh1 {[%emt 0:00:14]} Nf5 {[%emt 0:00:09]} 26. Nxf5 {[%emt 0:00:03]} Bxf5 {[%emt 0:00:02]} 27. a5 {[%emt 0:00:03]} Bd3 {[%emt 0:00:08]} 28. Rb6 {[%emt 0:00:06]} Rfe8 {[%emt 0:00:02]} 29. Ra1 {[%emt 0:00:14]} Rc7 {[%emt 0:00:14]} 30. Ra2 {[%emt 0:00:03]} Rd8 {[%emt 0:00:10]} 31. Rab2 {[%emt 0:00:05]} Re8 {[%emt 0:00:05]} 32. Bg2 {[%emt 0:00:05]} Qa4 {[%emt 0:00:01]} 33. h4 {[%emt 0:00:24]} gxh4 {[%emt 0:00:10]} 34. Bxh6 {[%emt 0:00:04]} Qa1+ {[%emt 0:00:16]} 35. Kh2 {[%emt 0:00:02]} hxg3+ 36. fxg3 {[%emt 0:00:02]} Re2 {[%emt 0:00:12]} 37. Qg5 {[%emt 0:00:12]} f6 {[%emt 0:00:01]} 38. Qg4 {[%emt 0:00:04]} Rxb2 {[%emt 0:00:05]} 39. Bxg7 {[%emt 0:00:25]} Rxg7 {[%emt 0:00:06]} 40. Qc8+ {[%emt 0:00:01]} Kh7 {[%emt 0:00:19]} 41. Qh3+ {[%emt 0:00:01]} Kg6 {[%emt 0:00:03]} 42. Qg4+ {[%emt 0:00:01]} Kh6 {[%emt 0:00:01]} 43. Qh4+ {[%emt 0:00:04]} Kg6 {[%emt 0:00:03]} 44. Qg4+ {[%emt 0:00:00]} Kh7 {[%emt 0:00:02]} 45. Qh3+ {[%emt 0:00:01]} Kg8 {[%emt 0:00:16]} 46. Qc8+ {[%emt 0:00:01]} Kf7 {[%emt 0:00:03]} 47. Qd7+ {[%emt 0:00:07]} Kg6 {[%emt 0:00:01]} 48. Qg4+ {[%emt 0:00:01]} 1/2-1/2

[Event "RUS-ch Women Blitz 2019"]
[Site "Sochi"]
[Date "2019.10.17"]
[Round "15.5"]
[White "Ambartsumova, Karina"]
[Black "Chernyak, Viktoria"]
[Result "1-0"]
[ECO "A35"]
[WhiteElo "2341"]
[BlackElo "2284"]
[Annotator "NA"]
[PlyCount "67"]
[EventDate "2019.10.17"]
[EventType "swiss"]
[EventCountry "RUS"]
[SourceTitle "playchess.com"]
[Source "ChessBase"]
[SourceQuality "1"]
[TimeControl "180+2"]

1. c4 {[%emt 0:00:00]} Nf6 {[%emt 0:00:00]} 2. Nc3 {[%emt 0:00:01]} c5 {[%emt 0:00:11]} 3. Nf3 {[%emt 0:00:03]} Nc6 {[%emt 0:00:03]} 4. d4 {[%emt 0:00:06]} cxd4 {[%emt 0:00:02]} 5. Nxd4 {[%emt 0:00:00]} g6 {[%emt 0:00:13]} 6. Nc2 {[%emt 0:00:07]} Bg7 {[%emt 0:00:01]} 7. e4 {[%emt 0:00:01]} O-O {[%emt 0:00:02]} 8. Be2 {[%emt 0:00:03]} d6 {[%emt 0:00:01]} 9. O-O {[%emt 0:00:02]} Be6 {[%emt 0:00:01]} 10. Bd2 {[%emt 0:00:14]} a5 {[%emt 0:00:18]} 11. Rc1 {[%emt 0:00:07]} h6 {[%emt 0:00:31]} 12. Kh1 {[%emt 0:00:09]} Ne5 {[%emt 0:00:08]} 13. b3 {[%emt 0:00:06]} Kh7 {[%emt 0:00:27]} 14. f4 {[%emt 0:00:04]} Nc6 {[%emt 0:00:01]} 15. Bf3 {[%emt 0:00:28]} Qb8 {[%emt 0:00:19]} 16. Nd5 {[%emt 0:00:12]} Re8 {[%emt 0:00:28]} 17. Be3 {[%emt 0:00:15]} Ra6 {[%emt 0:00:04]} 18. Qd3 {[%emt 0:00:14]} Bd7 {[%emt 0:00:17]} 19. Rfd1 {[%emt 0:00:19]} Ng4 {[%emt 0:00:11]} 20. Bg1 {[%emt 0:00:06]} h5 {[%emt 0:00:01]} 21. h3 {[%emt 0:00:16]} Nf6 {[%emt 0:00:01]} 22. Nce3 {[%emt 0:00:20]} Nb4 {[%emt 0:00:03]} 23. Qd2 {[%emt 0:00:04]} Nbxd5 {[%emt 0:00:03]} 24. cxd5 {[%emt 0:00:07]} b5 {[%emt 0:00:01]} 25. Nc2 {[%emt 0:00:05]} b4 {[%emt 0:00:06]} 26. Bd4 {[%emt 0:00:01]} Ra8 {[%emt 0:00:05]} 27. e5 {[%emt 0:00:02]} Ng8 {[%emt 0:00:03]} 28. Ne3 {[%emt 0:00:01]} dxe5 {[%emt 0:00:03]} 29. fxe5 {[%emt 0:00:08]} Bxe5 {[%emt 0:00:01]} 30. Be4 {[%emt 0:00:07]} Bxd4 {[%emt 0:00:03]} 31. Qxd4 {[%emt 0:00:01]} Qg3 {[%emt 0:00:01]} 32. Rf1 {[%emt 0:00:03]} Nf6 {[%emt 0:00:04]} 33. Rf3 {[%emt 0:00:03]} Qh4 {[%emt 0:00:05]} 34. Bxg6+ {[%emt 0:00:02]} 1-0